bitfinex/quotes_SOLUSD_20240930
["timestamp","ask_amount","ask_price","bid_price","bid_amount"]
[1727730580397,23.776884,157.18,157.15,31.2852]
[1727730580590,6.3624,157.18,157.15,15.3773]
[1727730580896,23.776884,157.22,157.15,15.3773]
[1727730582120,6.3622,157.18,157.15,15.3773]
[1727730582408,15.9028,157.21,157.12,28.5196]
[1727730582617,6.3631,157.16,157.12,28.5196]
[1727730583610,6.3626,157.17,157.13,6.364]
[1727730583799,6.3626,157.17,157.13,17.6178631]
[1727730584606,6.3626,157.17,157.13,6.364]
[1727730586112,6.3626,157.17,157.14,0.41785027]
[1727730586415,6.3626,157.17,157.13,6.364]
[1727730587915,6.3626,157.17,157.13,6.78184415]
[1727730588302,6.3626,157.17,157.13,6.364]
[1727730591216,6.3626,157.17,157.13,6.78185277]
[1727730591444,6.3626,157.17,157.13,6.364]
[1727730594795,23.776884,157.16,157.06,31.72563031]
[1727730594996,6.3645,157.12,157.09,15.914]
[1727730595603,6.3645,157.12,157.1,0.41880413]
[1727730596119,6.3645,157.12,157.09,15.914]
[1727730598914,6.3645,157.12,157.08,6.3661]
[1727730600723,6.3645,157.12,157.09,0.41902372]
[1727730601021,6.3645,157.12,157.08,6.3661]
[1727730602131,6.3645,157.12,157.09,0.4190238]
[1727730602815,6.3645,157.12,157.08,6.3661]
[1727730603014,6.3645,157.12,157.08,6.78512156]
[1727730603613,6.3645,157.12,157.08,6.3661]
[1727730604322,6.3645,157.12,157.09,0.41901984]
[1727730604716,6.3645,157.12,157.08,6.3661]
[1727730606742,6.3645,157.12,157.08,6.78517201]
[1727730607616,6.3645,157.12,157.08,6.3661]
[1727730608012,6.3645,157.12,157.08,6.78517029]
[1727730608630,6.3645,157.12,157.09,30.0]
[1727730610237,6.3645,157.12,157.08,6.3661]
[1727730610414,23.776884,157.1,157.03,15.9197]
[1727730610748,23.776884,157.08,157.03,15.9197]
[1727730611038,30.143284,157.08,157.04,6.3677]
[1727730611331,6.3666,157.07,157.03,22.2878]
[1727730612620,6.3651,157.11,157.05,15.9182]
[1727730612820,6.3654,157.1,157.06,6.78619622]
[1727730613131,6.3654,157.1,157.06,6.3668]
[1727730613842,6.3661,157.08,157.04,6.3676]
[1727730614139,6.3666,157.07,157.03,6.368]
[1727730616529,6.3663,157.08,157.03,6.368]
[1727730618223,6.3663,157.08,157.04,6.78779683]
[1727730618629,6.3663,157.08,157.04,6.3677]
[1727730618829,23.776884,157.07,157.02,27.1746631]
[1727730619022,6.3666,157.07,157.03,6.3681]
[1727730621944,30.142984,157.09,157.04,6.78761512]
[1727730622329,30.142984,157.09,157.04,6.3674]
[1727730624031,6.3654,157.1,157.06,6.3669]
[1727730624427,6.3658,157.09,157.05,6.3672]
[1727730627424,23.776884,157.11,157.06,0.41968953]
[1727730627622,6.3655,157.1,157.06,6.78658953]
[1727730628542,6.3655,157.1,157.06,6.3669]
[1727730633423,23.776884,157.11,157.06,6.3669]
[1727730633624,6.3677,157.05,157.01,42.2909]
[1727730633958,6.3671,157.06,157.02,6.3685]
[1727730641227,6.3667,157.07,157.03,6.3681]
[1727730641738,23.776884,157.06,157.03,6.3681]
[1727730642245,6.3667,157.07,157.04,0.42047569]
[1727730642450,6.3667,157.07,157.03,6.3681]
[1727730644924,7.95848342,157.07,157.03,6.3681]
[1727730645137,6.3667,157.07,157.03,6.3681]
[1727730650154,7.95848205,157.07,157.03,6.3681]
[1727730650337,6.3667,157.07,157.03,6.3681]
[1727730655657,23.776884,157.07,157.04,6.3678]
[1727730660759,23.776884,157.07,157.0,27.1877631]
[1727730660760,6.3683,157.03,157.0,15.9227]
[1727730660957,23.776884,157.05,156.99,12.6909]
[1727730660958,7.96119955,157.02,156.99,6.3212]
[1727730661161,6.3689,157.02,156.99,6.3212]
[1727730661458,6.3689,157.02,156.98,6.37]
[1727730661861,1.59231366,157.04,156.98,6.37]
[1727730661862,30.145184,157.03,156.98,6.37]
[1727730662166,1.59231867,157.02,156.99,6.3697]
[1727730662866,23.776884,157.02,156.99,6.3697]
[1727730663946,25.36920358,157.02,156.99,6.3697]
[1727730666052,31.73780358,157.02,156.98,6.3701]
[1727730666255,1.59238847,157.01,156.98,6.3701]
[1727730666868,6.3707,156.97,156.88,6.0713]
[1727730667048,23.776884,156.95,156.88,6.0713]
[1727730667375,23.776884,156.96,156.91,15.9321]
[1727730667672,23.776884,156.96,156.92,6.3725]
[1727730668393,30.148284,156.96,156.91,15.9321]
[1727730668661,23.776884,156.94,156.91,22.305]
[1727730669275,23.776884,156.94,156.88,22.0067]
[1727730670070,23.776884,156.94,156.88,6.0713]
[1727730670366,23.776884,156.92,156.88,6.3742]
[1727730670554,1.59341082,156.91,156.88,6.3742]
[1727730670752,1.59341082,156.91,156.87,15.9365]
[1727730671072,1.59341082,156.91,156.87,22.3111]
[1727730671073,23.776884,156.9,156.87,22.3111]
[1727730671677,23.776884,156.88,156.84,28.3489]
[1727730672172,25.37069804,156.89,156.84,28.3489]
[1727730672341,25.37069804,156.89,156.85,6.3755]
[1727730673275,23.776884,156.89,156.84,21.9734]
[1727730673574,23.776884,156.9,156.86,6.375]
[1727730674074,23.776884,156.9,156.85,6.3752]
[1727730674571,23.776884,156.9,156.86,6.3749]
[1727730679874,23.776884,156.91,156.87,6.3743]
[1727730680257,23.776884,156.89,156.86,22.3121]
[1727730681757,16.3647,156.94,156.88,6.3742]
[1727730681963,23.776884,156.93,156.88,6.3742]
[1727730682165,16.3647,156.94,156.86,15.9371]
[1727730682473,16.3647,156.94,156.88,6.3741]
[1727730683679,23.776884,156.93,156.88,6.3741]
[1727730684250,6.65831046,156.96,156.87,11.2538631]
[1727730684454,1.59332006,156.97,156.9,15.9333]
[1727730685676,23.776884,156.96,156.9,15.9333]
[1727730685867,23.776884,156.97,156.9,15.9333]
[1727730688679,23.776884,156.97,156.91,6.373]
[1727730688991,23.776884,156.97,156.9,22.3066]
[1727730693374,23.776884,156.94,156.9,22.3066]
[1727730694596,23.776884,156.94,156.9,15.9333]
[1727730694887,23.776884,156.94,156.91,6.3729]
[1727730695782,23.776884,156.92,156.87,22.311]
[1727730695996,23.776884,156.9,156.87,22.311]
[1727730696286,1.59356734,156.89,156.87,22.311]
[1727730696868,23.776884,156.9,156.87,22.311]
[1727730697764,23.776884,156.9,156.87,15.9364]
[1727730697984,23.776884,156.9,156.88,6.3742]
[1727730698185,23.776884,156.9,156.87,15.9364]
[1727730698492,23.776884,156.88,156.87,22.311]
[1727730702188,23.776884,156.88,156.84,21.973]
[1727730702484,23.776884,156.88,156.85,6.3752]
[1727730703682,23.776884,156.88,156.84,21.973]
[1727730703880,23.776884,156.88,156.84,12.4096]
[1727730704075,1.5938546,156.87,156.84,12.4096]
[1727730704278,23.776884,156.86,156.84,6.0338]
[1727730704595,1.59398427,156.85,156.83,16.2902]
[1727730704783,1.59398427,156.85,156.83,6.3762]
[1727730705975,23.776884,156.86,156.84,6.3759]
[1727730709181,1.59393463,156.85,156.84,6.3759]
[1727730709389,23.776884,156.86,156.84,6.3759]
[1727730709587,23.776884,156.86,156.85,6.3755]
[1727730710874,23.776884,156.88,156.85,6.3755]
[1727730711294,25.37073428,156.88,156.85,6.3755]
[1727730712093,23.776884,156.88,156.85,6.3755]
[1727730712295,23.776884,156.88,156.84,6.3755]
[1727730712501,25.37075164,156.88,156.84,6.3755]
[1727730713187,23.776884,156.88,156.84,6.3755]
[1727730713701,25.37075437,156.88,156.84,6.3755]
[1727730714279,25.37075437,156.88,156.85,6.3754]
[1727730714678,25.37075437,156.88,156.83,3.3915154]
[1727730714679,23.776884,156.88,156.84,15.9394]
[1727730714897,23.776884,156.88,156.86,6.375]
[1727730715076,1.59377929,156.87,156.85,6.3754]
[1727730716894,23.776884,156.86,156.84,22.3151]
[1727730717293,23.776884,156.86,156.82,3.39292118]
[1727730717490,23.776884,156.86,156.83,6.3762]
[1727730717693,23.776884,156.86,156.81,19.33492118]
[1727730717878,23.776884,156.84,156.82,6.3767]
[1727730718085,1.59418208,156.83,156.81,19.33492118]
[1727730718304,23.776884,156.82,156.81,25.71202118]
[1727730718503,23.776884,156.82,156.81,25.71306699]
[1727730719498,23.776884,156.89,156.83,6.3759]
[1727730720384,23.776884,156.89,156.82,6.3766]
[1727730721285,23.776884,156.89,156.81,15.942]
[1727730721481,25.37104561,156.89,156.83,6.3762]
[1727730721881,23.776884,156.89,156.83,6.3762]
[1727730724498,25.37094849,156.89,156.83,6.3762]
[1727730725510,32.02755937,156.89,156.83,6.3762]
[1727730726224,30.43349488,156.89,156.83,6.3762]
[1727730728700,32.02759794,156.89,156.83,6.3762]
[1727730729391,30.43349488,156.89,156.83,6.3762]
[1727730729908,32.02759783,156.89,156.83,6.3762]
[1727730730216,30.43349488,156.89,156.83,6.3762]
[1727730730789,23.776884,156.87,156.83,6.3762]
[1727730731010,23.776884,156.85,156.83,6.3762]
[1727730733114,23.776884,156.86,156.83,6.3762]
[1727730736894,23.776884,156.84,156.82,6.3766]
[1727730737094,1.59416273,156.83,156.82,6.3766]
[1727730737315,23.776884,156.84,156.82,6.3766]
[1727730738113,23.776884,156.84,156.81,15.942]
[1727730738318,23.776884,156.84,156.83,6.3763]
[1727730748817,23.776884,156.89,156.84,6.3758]
[1727730751114,23.776884,156.87,156.84,6.3758]
[1727730754108,23.776884,156.85,156.83,22.3167]
[1727730754425,25.37095821,156.84,156.83,22.3167]
[1727730754829,23.776884,156.84,156.83,22.3167]
[1727730764106,23.776884,156.83,156.8,22.3204]
[1727730764328,1.59431916,156.82,156.8,22.3204]
[1727730765115,1.59431916,156.82,156.81,6.3771]
[1727730765322,23.776884,156.82,156.81,6.3771]
[1727730765911,23.776884,156.82,156.78,6.3782]
[1727730766118,31.74817103,156.82,156.78,6.3782]
[1727730766535,31.74817103,156.82,156.77,15.9462]
[1727730766536,30.154484,156.8,156.77,15.9462]
[1727730766828,23.776884,156.78,156.77,15.9462]
[1727730768033,23.776884,156.8,156.75,0.8488074]
[1727730768327,23.776884,156.78,156.75,0.8488074]
[1727730768635,23.776884,156.79,156.75,0.8488074]
[1727730769319,23.776884,156.77,156.75,0.8488074]
[1727730773316,15.2151,156.81,156.75,0.8488074]
[1727730773541,15.2151,156.81,156.75,7.2279074]
[1727730774735,23.776884,156.8,156.75,7.2279074]
[1727730775033,23.776884,156.78,156.75,0.8488074]
[1727730775233,23.776884,156.76,156.75,0.8488074]
[1727730775738,23.776884,156.76,156.75,7.2283074]
[1727730784028,15.2151,156.81,156.75,7.2283074]
[1727730784029,15.2151,156.81,156.75,0.8488074]
[1727730784228,23.776884,156.8,156.75,7.2283074]
[1727730786743,23.776884,156.78,156.75,7.2283074]
[1727730786939,1.59493905,156.77,156.75,7.2283074]
[1727730787115,23.776884,156.76,156.75,7.2283074]
[1727730792926,23.776884,156.76,156.75,0.8488074]
[1727730793131,30.155984,156.76,156.75,0.8488074]
[1727730799548,23.776884,156.76,156.75,0.8488074]
[1727730816151,30.155984,156.76,156.75,0.8488074]
[1727730829261,70.49203641,156.76,156.67,15.9567]
[1727730829465,6.42097511,156.75,156.67,22.3392]
[1727730829666,25.372543,156.74,156.67,22.3392]
[1727730830962,23.776884,156.7,156.67,22.3392]
[1727730831166,23.776884,156.68,156.62,22.3904]
[1727730831358,23.776884,156.68,156.66,6.3829]
[1727730831571,23.776884,156.68,156.67,6.3828]
[1727730832969,23.776884,156.74,156.68,6.3823]
[1727730833375,23.776884,156.72,156.68,6.3823]
[1727730833575,23.776884,156.7,156.68,6.3823]
[1727730836789,23.776884,156.69,156.68,6.3823]
[1727730839977,1.59557043,156.73,156.66,11.2538631]
[1727730840175,1.59538373,156.73,156.7,6.3815]
[1727730840385,1.59538373,156.73,156.69,22.3367]
[1727730840584,9.10911006,156.74,156.69,15.9548]
[1727730840883,9.10911006,156.74,156.7,6.3816]
[1727730841184,15.48941006,156.74,156.7,6.3816]
[1727730841385,15.48941006,156.74,156.69,22.3366]
[1727730841562,23.776884,156.73,156.69,22.3366]
[1727730847967,23.776884,156.73,156.69,15.9548]
[1727730848166,23.776884,156.73,156.7,6.3814]
[1727730848872,23.776884,156.73,156.69,22.3366]
[1727730849192,23.776884,156.73,156.7,6.3816]
[1727730851699,23.776884,156.75,156.7,6.3816]
[1727730852066,23.776884,156.73,156.7,6.3816]
[1727730854768,23.776884,156.73,156.67,21.3393]
[1727730854769,15.26421438,156.79,156.71,11.2538631]
[1727730855091,1.59496813,156.78,156.73,22.3305]
[1727730856287,23.776884,156.77,156.73,22.3305]
[1727730856490,23.776884,156.75,156.73,22.3305]
[1727730857798,23.776884,156.75,156.72,11.2538631]
[1727730857998,23.776884,156.75,156.72,6.3807]
[1727730860692,25.3719864,156.75,156.72,6.3807]
[1727730861499,23.776884,156.75,156.72,6.3807]
[1727730862082,23.776884,156.75,156.7,22.3346]
[1727730862381,30.157384,156.73,156.69,6.3818]
[1727730862589,1.59539223,156.72,156.69,6.3818]
[1727730864168,1.59539223,156.72,156.67,32.5931631]
[1727730864393,23.776884,156.73,156.71,6.3811]
[1727730869181,6.64916105,156.78,156.72,6.3808]
[1727730869382,23.776884,156.78,156.72,6.3808]
[1727730870300,28.25757951,156.79,156.73,15.9507]
[1727730870301,21.90457951,156.79,156.73,15.9507]
[1727730870484,6.65214162,156.79,156.73,27.2045631]
[1727730871488,6.65214162,156.79,156.73,33.5847631]
[1727730871896,23.776884,156.76,156.73,33.5847631]
[1727730877193,23.776884,156.76,156.73,15.9507]
[1727730877399,23.776884,156.76,156.73,22.331]
[1727730877788,23.776884,156.77,156.73,15.9507]
[1727730877987,30.155784,156.77,156.73,22.331]
[1727730878805,30.155784,156.77,156.73,15.9507]
[1727730879106,30.155784,156.77,156.74,6.3799]
[1727730890014,30.155784,156.77,156.73,22.3309]
[1727730900023,23.776884,156.79,156.74,6.3797]
[1727730904521,23.776884,156.77,156.74,6.3797]
[1727730918615,23.776884,156.77,156.73,15.9507]
[1727730918616,25.2530776,156.83,156.76,11.2538631]
[1727730918820,6.65250755,156.83,156.78,6.378]
[1727730919145,15.5375,156.84,156.78,6.378]
[1727730920533,23.776884,156.83,156.78,6.378]
[1727730922537,6.64721635,156.86,156.77,33.3020631]
[1727730922742,1.59424308,156.85,156.79,6.3776]
[1727730923337,55.65466081,156.88,156.8,6.3772]
[1727730923545,24.18591101,156.88,156.8,6.3772]
[1727730923841,16.5968,156.88,156.82,6.3767]
[1727730924014,35.19737005,156.88,156.82,6.3767]
[1727730924326,16.5968,156.88,156.81,22.3193]
[1727730924530,6.3753,156.86,156.82,6.3767]
[1727730925754,23.776884,156.85,156.82,6.3767]
[1727730925951,13.29856998,156.89,156.81,15.214]
[1727730926145,13.29856998,156.89,156.81,25.78290085]
[1727730926326,6.65250755,156.89,156.81,25.78290085]
[1727730926654,6.3744,156.88,156.81,25.78290085]
[1727730926940,6.3744,156.88,156.81,14.52903775]
[1727730927638,23.776884,156.87,156.81,14.52903775]
[1727730927837,23.776884,156.87,156.82,11.2538631]
[1727730945461,23.776884,156.87,156.81,21.03783775]
[1727730945462,6.3759,156.84,156.81,21.03783775]
[1727730945633,23.776884,156.85,156.81,21.03783775]
[1727730952651,6.65250755,156.89,156.81,32.29170085]
[1727730953055,23.776884,156.88,156.81,32.29170085]
[1727730953261,6.3748,156.87,156.82,11.2538631]
[1727730953663,23.776884,156.86,156.82,11.2538631]
[1727730955565,6.3748,156.87,156.82,11.2538631]
[1727730955939,23.776884,156.88,156.82,11.2538631]
[1727730956139,23.776884,156.88,156.83,11.2538631]
[1727730956339,23.776884,156.88,156.84,11.2538631]
[1727730956560,23.776884,156.88,156.83,11.2538631]
[1727730957860,23.776884,156.88,156.81,21.03783775]
[1727730957861,23.776884,156.88,156.82,11.2538631]
[1727730959872,30.150984,156.89,156.82,11.2538631]
[1727730961368,23.776884,156.87,156.81,21.03783775]
[1727730961547,23.776884,156.85,156.81,21.03783775]
[1727730963543,6.3751,156.86,156.81,21.03783775]
[1727730963744,23.776884,156.89,156.81,21.03783775]
[1727730965056,6.375,156.87,156.81,21.03783775]
[1727730965361,23.776884,156.86,156.81,21.03783775]
[1727730965952,6.3743,156.88,156.82,11.2538631]
[1727730966158,23.776884,156.87,156.82,11.2538631]
[1727730968068,23.776884,156.92,156.82,11.2538631]
[1727730968669,10.22939636,156.91,156.82,11.2538631]
[1727730968887,23.776884,156.9,156.82,11.2538631]
[1727730972671,23.776884,156.88,156.81,21.03783775]
[1727730975871,23.776884,156.88,156.82,11.2538631]
[1727730976075,30.151384,156.88,156.82,11.2538631]
[1727730984776,23.776884,156.89,156.82,11.2538631]
[1727730987562,23.776884,156.9,156.82,11.2538631]
[1727730987782,6.3739,156.89,156.82,11.2538631]
[1727730988083,30.150484,156.9,156.84,11.2538631]
[1727730989260,10.41800797,156.94,156.86,11.2538631]
[1727730989462,10.22907443,156.93,156.85,22.379]
[1727730989866,6.3741,156.89,156.85,22.379]
[1727730994359,23.776884,156.92,156.85,22.379]
[1727730998483,6.32808108,156.95,156.86,11.2538631]
[1727730999583,23.776884,156.94,156.86,11.2538631]
[1727731000381,6.32808108,156.95,156.86,11.2538631]
[1727731000559,6.3725,156.93,156.86,11.2538631]
[1727731000958,6.3719,156.94,156.88,11.2538631]
[1727731001968,23.776884,156.93,156.88,11.2538631]
[1727731002170,23.776884,156.93,156.89,6.3003]
[1727731006081,8.6356262,156.97,156.9,27.0800631]
[1727731006299,6.32808108,156.99,156.92,11.2538631]
[1727731006464,26.48834019,157.01,156.92,11.2538631]
[1727731007481,15.27831379,157.01,156.92,11.2538631]
[1727731007685,6.3703,156.98,156.92,11.2538631]
[1727731008188,8.6356262,157.01,156.92,11.2538631]
[1727731008377,8.6356262,157.01,156.93,6.6141]
[1727731008378,6.3698,156.99,156.93,6.6141]
[1727731008967,23.776884,156.98,156.93,6.6141]
[1727731009868,6.3698,156.99,156.93,6.6141]
[1727731010064,30.146384,157.0,156.93,6.6141]
[1727731014795,30.146384,157.0,156.94,11.2538631]
[1727731017088,6.3702,156.98,156.93,17.8679631]
[1727731017303,6.3702,156.98,156.93,6.6141]
[1727731019492,1.59272267,156.97,156.93,6.6141]
[1727731019690,6.3721,156.94,156.9,15.8262]
[1727731020196,6.3714,156.95,156.9,15.8262]
[1727731024603,25.36986972,156.98,156.9,15.8262]
[1727731024799,6.3719,156.94,156.9,15.8262]
[1727731025404,6.3715,156.95,156.9,15.8262]
[1727731030686,23.776884,156.98,156.9,15.8262]
[1727731030886,23.776884,156.95,156.9,15.8262]
[1727731032511,23.776884,156.96,156.9,27.0800631]
[1727731032714,23.776884,156.96,156.91,11.2538631]
[1727731040703,6.3708,156.97,156.91,11.2538631]
[1727731041022,6.3706,156.97,156.91,11.2538631]
[1727731041603,23.776884,156.97,156.91,11.2538631]
[1727731046625,30.147484,156.97,156.91,11.2538631]
[1727731056837,30.147484,156.97,156.91,10.7538631]
[1727731059013,23.776884,156.97,156.91,10.7538631]
[1727731068828,6.3699,156.99,156.93,11.2538631]
[1727731069141,23.776884,156.98,156.93,11.2538631]
[1727731069739,23.776884,156.98,156.94,11.2538631]
[1727731073530,6.3699,156.99,156.94,11.2538631]
[1727731079547,6.3695,157.0,156.95,11.2538631]
[1727731079758,23.776884,156.99,156.96,11.2538631]
[1727731080826,23.776884,156.99,156.93,6.4032]
[1727731080827,23.776884,156.99,156.95,11.2538631]
[1727731083157,6.3694,157.0,156.95,11.2538631]
[1727731084558,23.776884,156.98,156.93,6.4032]
[1727731084726,30.148084,156.96,156.9,15.8262]
[1727731084932,1.59308482,156.95,156.9,15.8262]
[1727731085355,30.148084,156.96,156.9,27.0800631]
[1727731090945,23.776884,156.96,156.9,15.8262]
[1727731094560,22.52175744,157.01,156.92,11.2538631]
[1727731094761,22.52175744,157.01,156.9,15.8262]
[1727731094762,6.3695,157.0,156.93,11.2538631]
[1727731095850,6.3698,156.99,156.93,11.2538631]
[1727731096161,6.3695,157.0,156.93,17.8359631]
[1727731097452,23.776884,157.01,156.93,17.8359631]
[1727731097755,6.3698,156.99,156.93,17.8359631]
[1727731098055,23.776884,156.99,156.93,17.8359631]
[1727731099759,23.776884,156.99,156.94,11.2538631]
[1727731101873,8.6356262,157.03,156.95,11.2538631]
[1727731102168,44.71021824,157.05,156.95,11.2538631]
[1727731102169,23.776884,157.0,156.95,11.2538631]
[1727731102365,30.146284,157.0,156.94,16.197]
[1727731102663,23.776884,156.98,156.94,16.197]
[1727731102845,23.776884,156.96,156.93,6.5821]
[1727731105053,7.96441735,156.95,156.9,16.197]
[1727731107770,6.3714,156.95,156.9,16.197]
[1727731108071,6.3707,156.97,156.91,11.2538631]
[1727731108257,6.3707,156.97,156.9,27.4508631]
[1727731108565,23.776884,156.95,156.9,16.197]
[1727731109150,30.148284,156.95,156.9,16.197]
[1727731110644,23.776884,156.95,156.9,16.197]
[1727731115153,23.776884,156.96,156.9,16.197]
[1727731121171,30.147884,156.96,156.9,16.197]
[1727731153698,32.2752,157.0,156.87,6.475]
[1727731153699,23.776884,156.94,156.87,6.475]
[1727731153887,15.9259,156.98,156.87,6.475]
[1727731153888,30.149584,156.92,156.87,6.475]
[1727731154086,1.59346929,156.91,156.87,6.475]
[1727731155196,23.776884,156.93,156.87,6.475]
[1727731156783,1.59346954,156.92,156.87,6.475]
[1727731161396,23.776884,156.93,156.87,6.475]
[1727731163407,30.149184,156.93,156.87,6.475]
[1727731163610,1.59347647,156.92,156.87,6.475]
[1727731166223,23.776884,156.91,156.83,6.6525]
[1727731166391,8.74215398,156.93,156.83,6.6525]
[1727731166392,30.150784,156.89,156.83,6.6525]
[1727731166596,1.59388741,156.88,156.83,6.6525]
[1727731190135,23.776884,156.87,156.83,6.6525]
[1727731190434,1.5940008,156.86,156.83,6.6525]
[1727731191140,1.5940008,156.86,156.81,16.4235]
[1727731192833,23.776884,156.88,156.81,16.4235]
[1727731194837,1.5939884,156.87,156.81,16.4235]
[1727731200726,23.776884,156.88,156.81,16.4235]
[1727731201346,1.59399305,156.87,156.81,16.4235]
[1727731201721,1.59399305,156.87,156.81,27.6773631]
[1727731202646,23.776884,156.88,156.81,27.6773631]
[1727731205418,1.59399482,156.91,156.81,27.6773631]
[1727731205419,6.32808108,156.92,156.84,11.2538631]
[1727731205626,6.3733,156.91,156.84,11.2538631]
[1727731207031,23.776884,156.9,156.84,11.2538631]
[1727731207246,8.74215398,156.93,156.87,11.2538631]
[1727731207448,24.26775308,157.0,156.87,11.2538631]
[1727731207449,16.4656,156.99,156.88,11.2538631]
[1727731207742,16.4656,156.99,156.89,11.2538631]
[1727731210142,23.776884,156.98,156.89,11.2538631]
[1727731210823,23.776884,156.96,156.89,26.9531631]
[1727731211224,23.776884,156.94,156.89,15.6993]
[1727731211421,30.149984,156.91,156.87,6.1165]
[1727731211643,1.59370169,156.9,156.87,6.1165]
[1727731216449,16.4656,156.99,156.88,11.2538631]
[1727731216655,16.4656,156.99,156.89,11.2538631]
[1727731216858,16.4656,156.99,156.88,11.2538631]
[1727731217657,6.3717,156.95,156.88,11.2538631]
[1727731217835,23.776884,156.94,156.88,11.2538631]
[1727731221253,23.776884,156.94,156.87,6.1165]
[1727731221254,30.148984,156.94,156.87,6.1165]
[1727731221446,30.148984,156.94,156.88,11.2538631]
[1727731229349,23.776884,156.94,156.9,11.2538631]
[1727731230934,23.776884,156.94,156.89,11.2538631]
[1727731239459,30.149784,156.92,156.87,11.2538631]
[1727731239639,1.59353809,156.91,156.87,11.2538631]
[1727731240861,1.59353809,156.91,156.85,15.6993]
[1727731240862,1.59353809,156.91,156.86,11.2538631]
[1727731243040,23.776884,156.92,156.86,11.2538631]
[1727731243236,23.776884,156.92,156.87,11.2538631]
[1727731246966,1.59354376,156.91,156.87,11.2538631]
[1727731249655,23.776884,156.92,156.87,11.2538631]
[1727731249853,1.59354573,156.91,156.87,11.2538631]
[1727731250471,23.776884,156.92,156.87,11.2538631]
[1727731251170,1.59354432,156.91,156.87,11.2538631]
[1727731253073,23.776884,156.92,156.87,11.2538631]
[1727731255573,1.59354886,156.91,156.87,11.2538631]
[1727731256073,23.776884,156.92,156.87,11.2538631]
[1727731257883,1.59355066,156.91,156.87,11.2538631]
[1727731261478,23.776884,156.92,156.87,11.2538631]
[1727731262167,1.59355515,156.91,156.87,11.2538631]
[1727731262679,6.3743,156.88,156.83,6.5183]
[1727731262878,1.59400682,156.87,156.81,11.2538631]
[1727731263263,1.59400682,156.87,156.82,11.2538631]
[1727731275568,6.3751,156.86,156.79,15.6464]
[1727731275887,1.59419044,156.85,156.8,11.2538631]
[1727731276791,1.59417545,156.84,156.8,11.2538631]
[1727731276971,1.5941646,156.86,156.8,11.2538631]
[1727731280785,7.9692646,156.86,156.79,15.6464]
[1727731280985,7.9692646,156.86,156.8,11.2538631]
[1727731281169,1.5942285,156.85,156.8,11.2538631]
[1727731282977,6.3751,156.86,156.8,11.2538631]
[1727731283274,6.3751,156.86,156.81,11.2538631]
[1727731283577,23.776884,156.85,156.8,11.2538631]
[1727731284413,6.3768,156.82,156.73,6.67347437]
[1727731284572,1.59457619,156.81,156.76,11.2538631]
[1727731285790,7.97167619,156.81,156.76,11.2538631]
[1727731287094,1.59457619,156.81,156.76,11.2538631]
[1727731289083,23.776884,156.81,156.76,11.2538631]
[1727731289270,30.153284,156.83,156.77,11.2538631]
[1727731290978,30.153284,156.83,156.78,11.2538631]
[1727731291186,23.776884,156.83,156.77,11.2538631]
[1727731320915,23.776884,156.83,156.78,11.2538631]
[1727731339222,7.971227,156.82,156.77,11.2538631]
[1727731340217,1.594527,156.82,156.77,11.2538631]
[1727731347302,1.594527,156.82,156.7,23.776884]
[1727731347303,23.776884,156.83,156.78,11.2538631]
[1727731350926,23.776884,156.83,156.77,11.2538631]
[1727731353924,30.153184,156.83,156.77,11.2538631]
[1727731355937,30.153184,156.83,156.78,11.2538631]
[1727731360236,23.776884,156.83,156.78,11.2538631]
[1727731362931,23.776884,156.83,156.78,10.7538631]
[1727731363633,30.153184,156.83,156.78,10.7538631]
[1727731366018,30.153184,156.83,156.77,11.2538631]
[1727731380449,23.776884,156.83,156.77,11.2538631]
[1727731380745,30.153184,156.83,156.77,11.2538631]
[1727731389056,30.153184,156.83,156.78,6.91115288]
[1727731389256,30.153184,156.83,156.77,11.2538631]
[1727731391060,30.153184,156.83,156.78,11.2538631]
[1727731398360,15.4278,156.84,156.81,11.2538631]
[1727731398543,21.4381,156.88,156.82,11.2538631]